fUSD/lending_fUSD_20251024
["ID","MTS","AMOUNT","RATE_DAILY","PERIOD"]
[392249092,1761276708409,-500.0,0.00043012,30]
[392249093,1761276708420,-500.0,0.00043012,30]
[392249094,1761276708429,-1022.15,0.00043012,30]
[392249095,1761276708440,-500.0,0.00043012,30]
[392249096,1761276708450,-782.57,0.00043012,30]
[392249097,1761276708462,-570.31,0.00043012,30]
[392249098,1761276708472,-885.28,0.00043012,30]
[392249099,1761276708482,-500.0,0.00043012,30]
[392249100,1761276708493,-738.42,0.00043012,30]
[392249101,1761276708504,-500.0,0.00043012,30]
[392249102,1761276708514,-827.8,0.00043012,30]
[392249103,1761276708522,-747.36,0.00043012,30]
[392249104,1761276708532,-500.0,0.00043012,30]
[392249105,1761276708542,-931.74,0.00043012,30]
[392249106,1761276708555,-500.0,0.00043012,30]
[392249107,1761276708565,-568.4,0.00043012,30]
[392249108,1761276708575,-855.01,0.00043012,30]
[392249109,1761276708586,-500.0,0.00043012,30]
[392249110,1761276708596,-500.0,0.00043012,30]
[392249111,1761276708607,-500.0,0.00043012,30]
[392249112,1761276708618,-500.0,0.00043012,30]
[392249113,1761276708628,-500.0,0.00043012,30]
[392249114,1761276708638,-500.0,0.00043012,30]
[392249115,1761276708647,-531.3,0.00043012,30]
[392249116,1761276708656,-500.0,0.00043012,30]
[392249117,1761276708666,-546.17,0.00043012,30]
[392249118,1761276708675,-500.0,0.00043012,30]
[392249119,1761276708685,-500.0,0.00043012,30]
[392249120,1761276708694,-1079.09,0.00043012,30]
[392249121,1761276708705,-500.0,0.00043012,30]
[392249122,1761276708714,-500.0,0.00043012,30]
[392249123,1761276708725,-600.39347098,0.00043012,30]
[392249124,1761276708735,-500.0,0.00043012,30]
[392249125,1761276708745,-500.0,0.00043012,30]
[392249126,1761276708755,-500.0,0.00043012,30]
[392249127,1761276708765,-774.66,0.00043012,30]
[392249128,1761276708775,-648.38,0.00043012,30]
[392249129,1761276708786,-500.0,0.00043012,30]
[392249130,1761276708795,-500.5,0.00043012,30]
[392249131,1761276708805,-790.24,0.00043012,30]
[392249132,1761276708816,-500.0,0.00043012,30]
[392249133,1761276708826,-1293.66,0.00043012,30]
[392249134,1761276708836,-500.0,0.00043012,30]
[392249135,1761276708847,-500.0,0.00043012,30]
[392249136,1761276708857,-1216.42,0.00043012,30]
[392249137,1761276708867,-500.0,0.00043012,30]
[392249138,1761276708877,-500.0,0.00043012,30]
[392249139,1761276708887,-500.0,0.00043012,30]
[392249140,1761276708897,-766.29,0.00043012,30]
[392249141,1761276708907,-605.84,0.00043012,30]
[392249142,1761276708917,-500.0,0.00043012,30]
[392249143,1761276708927,-584.16,0.00043012,30]
[392249144,1761276708937,-754.49,0.00043012,30]
[392249145,1761276708947,-500.0,0.00043012,30]
[392249146,1761276708958,-835.0,0.00043012,30]
[392249147,1761276708968,-500.0,0.00043012,30]
[392249148,1761276708979,-500.0,0.00043012,30]
[392249149,1761276708989,-500.0,0.00043012,30]
[392249150,1761276708998,-500.0,0.00043012,30]
[392249151,1761276709007,-500.0,0.00043012,30]
[392249152,1761276709018,-968.87,0.00043012,30]
[392249153,1761276709027,-584.43,0.00043012,30]
[392249154,1761276709036,-765.02,0.00043012,30]
[392249155,1761276709045,-818.09,0.00043012,30]
[392249156,1761276709055,-500.0,0.00043012,30]
[392249157,1761276709064,-500.0,0.00043012,30]
[392249158,1761276709073,-700.27,0.00043012,30]
[392249159,1761276709084,-500.0,0.00043012,30]
[392249160,1761276709094,-567.3,0.00043012,30]
[392249161,1761276709104,-340.6055139,0.00043012,30]
[392249162,1761276709115,-500.0,0.00043012,30]
[392249163,1761276709129,-500.0,0.00043012,30]
[392249164,1761276709141,-549.34,0.00043012,30]
[392249165,1761276709151,-500.0,0.00043012,30]
[392249166,1761276709163,-500.0,0.00043012,30]
[392249167,1761276709172,-708.53,0.00043012,30]
[392249168,1761276709181,-500.0,0.00043012,30]
[392249169,1761276709191,-500.0,0.00043012,30]
[392249170,1761276709202,-868.81,0.00043012,30]
[392249171,1761276709213,-500.0,0.00043012,30]
[392249172,1761276709223,-841.79,0.00043012,30]
[392249173,1761276709233,-500.0,0.00043012,30]
[392249174,1761276709243,-685.09,0.00043012,30]
[392249175,1761276709255,-500.0,0.00043012,30]
[392249176,1761276709268,-500.0,0.00043012,30]
[392249177,1761276709277,-518.17,0.00043012,30]
[392249178,1761276709286,-582.97,0.00043012,30]
[392249179,1761276709295,-500.0,0.00043012,30]
[392249180,1761276709304,-500.0,0.00043012,30]
[392249181,1761276709313,-500.0,0.00043012,30]
[392249182,1761276709322,-500.0,0.00043012,30]
[392249183,1761276709331,-500.0,0.00043012,30]
[392249184,1761276709340,-500.0,0.00043012,30]
[392249185,1761276709350,-767.33,0.00043012,30]
[392249186,1761276709360,-576.3,0.00043012,30]
[392249187,1761276709371,-500.0,0.00043012,30]
[392249188,1761276709379,-547.29,0.00043012,30]
[392249189,1761276709389,-500.0,0.00043012,30]
[392249190,1761276709398,-563.88,0.00043012,30]
[392249191,1761276709408,-500.0,0.00043012,30]
[392249192,1761276709418,-536.57,0.00043012,30]
[392249193,1761276709427,-500.0,0.00043012,30]
[392249194,1761276709436,-500.0,0.00043012,30]
[392249195,1761276709446,-559.04185846,0.00043012,30]
[392249196,1761276709457,-500.0,0.00043012,30]
[392249197,1761276709469,-500.0,0.00043012,30]
[392249198,1761276709478,-500.0,0.00043012,30]
[392249199,1761276709489,-500.0,0.00043012,30]
[392249200,1761276709500,-500.0,0.00043012,30]
[392249201,1761276709511,-500.0,0.00043012,30]
[392249202,1761276709523,-159.47472496,0.00043012,30]
[392249203,1761276709532,-340.09452244,0.00043012,30]
[392249204,1761276709541,-500.0,0.00043012,30]
[392249205,1761276709551,-716.69,0.00043012,30]
[392249206,1761276709560,-500.0,0.00043012,30]
[392249207,1761276709569,-582.83,0.00043012,30]
[392249208,1761276709577,-500.0,0.00043012,30]
[392249209,1761276709587,-720.59,0.00043012,30]
[392249210,1761276709596,-500.0,0.00043012,30]
[392249211,1761276709605,-500.0,0.00043012,30]
[392249212,1761276709614,-502.35,0.00043012,30]
[392249213,1761276709624,-500.0,0.00043012,30]
[392249214,1761276709634,-500.0,0.00043012,30]
[392249215,1761276709644,-500.0,0.00043012,30]
[392249216,1761276709654,-500.0,0.00043012,30]
[392249217,1761276709665,-500.0,0.00043012,30]
[392249218,1761276709675,-500.0,0.00043012,30]
[392249219,1761276709685,-500.0,0.00043012,30]
[392249220,1761276709695,-853.32,0.00043012,30]
[392249221,1761276709705,-500.25,0.00043012,30]
[392249222,1761276709714,-500.0,0.00043012,30]
[392249223,1761276709723,-770.35,0.00043012,30]
[392249224,1761276709732,-759.31,0.00043012,30]
[392249225,1761276709746,-864.42,0.00043012,2]
[392249226,1761276709755,-692.51,0.00043012,30]
[392249227,1761276709769,-925.13,0.00043012,30]
[392249228,1761276709778,-569.1,0.00043012,30]
[392249229,1761276709787,-500.0,0.00043012,2]
[392249230,1761276709796,-760.48,0.00043012,30]
[392249231,1761276709806,-500.0,0.00043012,30]
[392249232,1761276709815,-500.0,0.00043012,30]
[392249233,1761276709824,-691.31,0.00043012,30]
[392249234,1761276709835,-500.0,0.00043012,2]
[392249235,1761276709845,-500.0,0.00043012,30]
[392249236,1761276709857,-983.51,0.00043012,30]
[392249237,1761276709866,-500.0,0.00043012,30]
[392249238,1761276709876,-500.0,0.00043012,30]
[392249239,1761276709885,-590.79,0.00043012,30]
[392249240,1761276709901,-980.07,0.00043012,30]
[392249241,1761276709911,-500.0,0.00043012,30]
[392249242,1761276709921,-500.0,0.00043012,30]
[392249243,1761276709930,-500.0,0.00043012,30]
[392249244,1761276709939,-500.0,0.00043012,30]
[392249245,1761276709948,-817.32,0.00043012,30]
[392249246,1761276709958,-500.0,0.00043012,30]
[392249247,1761276709968,-500.0,0.00043012,10]
[392249248,1761276709979,-802.82,0.00043012,30]
[392249249,1761276709989,-500.0,0.00043012,30]
[392249250,1761276709998,-500.0,0.00043012,30]
[392249251,1761276710008,-644.8,0.00043012,30]
[392249252,1761276710018,-500.0,0.00043012,30]
[392249253,1761276710027,-500.0,0.00043012,30]
[392249254,1761276710037,-500.0,0.00043012,30]
[392249255,1761276710046,-896.35,0.00043012,30]
[392249256,1761276710055,-500.0,0.00043012,30]
[392249257,1761276710065,-743.01,0.00043012,30]
[392249258,1761276710075,-387.37084989,0.00043012,30]
[392249259,1761276710085,-500.0,0.00043012,30]
[392249260,1761276710094,-540.45,0.00043012,30]
[392249261,1761276710104,-500.0,0.00043012,30]
[392249262,1761276710114,-500.0,0.00043012,30]
[392249263,1761276710128,-956.91,0.00043012,30]
[392249264,1761276710138,-500.0,0.00043012,30]
[392249265,1761276710150,-500.0,0.00043012,30]
[392249266,1761276710160,-429.72704345,0.00043012,30]
[392249267,1761276710171,-500.0,0.00043012,30]
[392249268,1761276710181,-523.02,0.00043012,30]
[392249269,1761276710191,-625.96,0.00043012,30]
[392249270,1761276710204,-571.6,0.00043012,30]
[392249271,1761276710213,-652.85,0.00043012,30]
[392249272,1761276710222,-934.98,0.00043012,30]
[392249273,1761276710231,-500.0,0.00043012,30]
[392249274,1761276710242,-500.0,0.00043012,30]
[392249275,1761276710253,-506.71,0.00043012,30]
[392249276,1761276710264,-500.0,0.00043012,30]
[392249277,1761276710273,-706.23,0.00043012,30]
[392249278,1761276710283,-500.0,0.00043012,30]
[392249279,1761276710292,-500.0,0.00043012,30]
[392249280,1761276710301,-712.5,0.00043012,30]
[392249281,1761276710310,-500.0,0.00043012,30]
[392249282,1761276710319,-500.0,0.00043012,30]
[392249283,1761276710330,-500.0,0.00043012,30]
[392249284,1761276710340,-698.44,0.00043012,30]
[392249285,1761276710349,-500.0,0.00043013,30]
[392249286,1761276710359,-500.0,0.00043013,30]
[392249287,1761276710370,-500.0,0.00043013,30]
[392249288,1761276710379,-500.0,0.00043013,30]
[392249289,1761276710388,-500.0,0.00043013,30]
[392249290,1761276710397,-500.0,0.00043013,30]
[392249291,1761276710407,-500.0,0.00043013,30]
[392249292,1761276710416,-500.0,0.00043013,2]
[392249293,1761276710425,-500.0,0.00043013,30]
[392249294,1761276710434,-500.0,0.00043013,30]
[392249295,1761276710444,-631.88,0.00043013,30]
[392249296,1761276710454,-500.0,0.00043013,30]
[392249297,1761276710465,-500.0,0.00043013,30]
[392249298,1761276710474,-500.0,0.00043013,30]
[392249299,1761276710595,-500.0,0.00043013,30]
[392249300,1761276710606,-500.0,0.00043013,30]
[392249301,1761276710615,-500.0,0.00043013,30]
[392249302,1761276710624,-500.0,0.00043013,30]
[392249303,1761276710635,-500.0,0.00043013,30]
[392249304,1761276710646,-199.91452944,0.00043013,30]
[392249305,1761276710659,-500.0,0.00043013,30]
[392249306,1761276710668,-500.0,0.00043013,30]
[392249307,1761276710677,-500.0,0.00043013,30]
[392249308,1761276710687,-500.0,0.00043013,2]
[392249309,1761276710698,-500.0,0.00043013,30]
[392249310,1761276710709,-500.0,0.00043013,30]
[392249311,1761276710720,-662.02,0.00043013,30]
[392249312,1761276710730,-550.71,0.00043013,30]
[392249313,1761276710739,-500.0,0.00043013,30]
[392249314,1761276710751,-500.0,0.00043013,30]
[392249315,1761276710762,-500.0,0.00043013,30]
[392249316,1761276710772,-500.0,0.00043013,30]
[392249317,1761276710783,-752.97,0.00043013,30]
[392249318,1761276710793,-562.37,0.00043013,30]
[392249319,1761276710802,-213.09878869,0.00043013,30]
[392249320,1761276710812,-692.99,0.00043013,30]
[392249321,1761276710821,-569.08011011,0.00043013,30]
[392249322,1761276710831,-500.0,0.00043013,30]
[392249323,1761276710840,-500.0,0.00043013,30]
[392249324,1761276710850,-500.0,0.00043013,30]
[392249325,1761276710860,-614.45,0.00043013,30]
[392249326,1761276710870,-500.0,0.00043013,30]
[392249327,1761276710879,-573.11692306,0.00043013,30]
[392249328,1761276710889,-500.0,0.00043013,30]
[392249329,1761276710898,-971.61,0.00043013,30]
[392249330,1761276710908,-653.26,0.00043013,30]
[392249331,1761276710918,-657.54,0.00043013,30]
[392249332,1761276710927,-741.84,0.00043013,30]
[392249333,1761276710937,-649.04,0.00043013,30]
[392249334,1761276710947,-601.63,0.00043013,30]
[392249335,1761276710956,-500.0,0.00043013,30]
[392249336,1761276710966,-525.56,0.00043013,30]
[392249337,1761276710976,-500.0,0.00043013,30]
[392249338,1761276710987,-500.0,0.00043013,30]
[392249339,1761276710998,-500.0,0.00043013,30]
[392249340,1761276711008,-944.3,0.00043013,30]
[392249341,1761276711018,-500.0,0.00043013,30]
[392249342,1761276711027,-500.0,0.00043013,30]
[392249343,1761276711037,-692.19,0.00043013,30]
[392249344,1761276711047,-500.0,0.00043013,30]
[392249345,1761276711056,-500.0,0.00043013,30]
[392249346,1761276711066,-831.51,0.00043013,30]
[392249347,1761276711075,-500.0,0.00043013,30]
[392249348,1761276711084,-934.85,0.00043013,30]
[392249349,1761276711094,-500.0,0.00043013,30]
[392249350,1761276711103,-479.59205562,0.00043013,30]
[392249351,1761276711112,-500.0,0.00043013,30]
[392249352,1761276711126,-500.0,0.00043013,30]
[392249353,1761276711136,-500.0,0.00043013,30]
[392249354,1761276711145,-611.59,0.00043013,30]
[392249355,1761276711155,-500.0,0.00043013,30]
[392249356,1761276711165,-500.0,0.00043013,30]
[392249357,1761276711175,-500.0,0.00043013,30]
[392249358,1761276711183,-828.75,0.00043013,30]
[392249359,1761276711195,-550.14,0.00043013,30]
[392249360,1761276711204,-509.48,0.00043013,30]
[392249361,1761276711214,-500.0,0.00043013,30]
[392249362,1761276711224,-500.0,0.00043013,30]
[392249363,1761276711234,-500.0,0.00043013,30]
[392249364,1761276711244,-300.0,0.00043013,30]
[392249365,1761276711254,-887.85,0.00043013,30]
[392249366,1761276711264,-600.0,0.00043013,30]
[392249367,1761276711273,-722.47,0.00043013,30]
[392249368,1761276711283,-653.44,0.00043013,30]
[392249369,1761276711294,-500.0,0.00043013,30]
[392249370,1761276711305,-500.0,0.00043013,30]
[392249371,1761276711314,-500.0,0.00043013,30]
[392249372,1761276711324,-500.0,0.00043013,30]
[392249373,1761276711334,-500.0,0.00043013,30]
[392249374,1761276711345,-629.72,0.00043013,30]
[392249375,1761276711354,-500.0,0.00043013,30]
[392249376,1761276711363,-500.0,0.00043013,30]
[392249377,1761276711373,-500.0,0.00043013,30]
[392249378,1761276711382,-500.0,0.00043013,30]
[392249379,1761276711391,-500.0,0.00043013,30]
[392249380,1761276711401,-768.04,0.00043013,30]
[392249381,1761276711410,-500.0,0.00043013,30]
[392249382,1761276711420,-500.0,0.00043013,30]
[392249383,1761276711430,-604.08,0.00043013,30]
[392249384,1761276711440,-617.03,0.00043013,30]
[392249385,1761276711450,-500.0,0.00043013,30]
[392249386,1761276711459,-698.83,0.00043013,30]
[392249387,1761276711469,-500.0,0.00043013,30]
[392249388,1761276711479,-680.26,0.00043013,30]
[392249389,1761276711489,-500.0,0.00043013,30]
[392249390,1761276711498,-606.00566612,0.00043013,30]
[392249391,1761276711508,-500.0,0.00043013,30]
[392249392,1761276711517,-500.0,0.00043013,30]
[392249393,1761276711527,-560.72,0.00043013,30]
[392249394,1761276711537,-500.0,0.00043013,30]
[392249395,1761276711548,-500.0,0.00043013,30]
[392249396,1761276711558,-500.0,0.00043013,30]
[392249397,1761276711569,-500.0,0.00043013,30]
[392249398,1761276711579,-500.0,0.00043013,30]
[392249399,1761276711588,-500.0,0.00043013,30]
[392249400,1761276711598,-500.0,0.00043013,30]
[392249401,1761276711607,-500.0,0.00043013,30]
[392249402,1761276711618,-738.78,0.00043013,30]
[392249403,1761276711628,-500.0,0.00043013,30]
[392249404,1761276711639,-525.1,0.00043013,30]
[392249405,1761276711649,-608.95,0.00043013,30]
[392249406,1761276711661,-500.0,0.00043013,30]
[392249407,1761276711671,-500.0,0.00043013,30]
[392249408,1761276711682,-500.0,0.00043013,30]
[392249409,1761276711692,-500.0,0.00043013,30]
[392249410,1761276711702,-575.75,0.00043013,30]
[392249411,1761276711711,-1053.78,0.00043013,30]
[392249412,1761276711720,-513.84,0.00043013,30]
[392249413,1761276711729,-500.0,0.00043013,30]
[392249414,1761276711739,-500.0,0.00043013,30]
[392249415,1761276711748,-418.95543408,0.00043013,30]
[392249416,1761276711758,-500.0,0.00043013,30]
[392249417,1761276711768,-500.0,0.00043013,30]
[392249418,1761276711777,-500.0,0.00043013,30]
[392249419,1761276711786,-847.38,0.00043013,30]
[392249420,1761276711796,-808.39,0.00043013,30]
[392249421,1761276711807,-549.37,0.00043013,30]
[392249422,1761276711816,-578.8,0.00043013,30]
[392249423,1761276711826,-154.309446,0.00043013,30]
[392249424,1761276711835,-500.0,0.00043013,30]
[392249425,1761276711845,-340.460656,0.00043013,30]
[392249426,1761276711855,-865.1,0.00043013,30]
[392249427,1761276711864,-617.67,0.00043013,30]
[392249428,1761276711874,-408.46110197,0.00043013,30]
[392249429,1761276711884,-406.76937156,0.00043013,30]
[392249430,1761276711894,-500.0,0.00043013,30]
[392249431,1761276711904,-658.11,0.00043013,30]
[392249432,1761276711914,-500.0,0.00043013,30]
[392249433,1761276711923,-735.14,0.00043013,30]
[392249434,1761276711933,-500.0,0.00043013,30]
[392249435,1761276711942,-500.0,0.00043013,30]
[392249436,1761276711952,-781.22,0.00043013,30]
[392249437,1761276711964,-500.0,0.00043013,30]
[392249438,1761276711974,-539.59,0.00043013,30]
[392249439,1761276711984,-733.91,0.00043013,30]
[392249440,1761276711994,-500.0,0.00043013,30]
[392249441,1761276712004,-500.0,0.00043013,30]
[392249442,1761276712015,-808.43,0.00043013,30]
[392249443,1761276712024,-500.0,0.00043013,30]
[392249444,1761276712034,-704.43,0.00043013,30]
[392249445,1761276712043,-533.23,0.00043013,30]
[392249446,1761276712054,-840.45,0.00043013,30]
[392249447,1761276712063,-500.0,0.00043013,30]
[392249448,1761276712073,-597.88,0.00043013,30]
[392249449,1761276712083,-500.0,0.00043013,30]
[392249450,1761276712093,-500.0,0.00043013,30]
[392249451,1761276712103,-566.49,0.00043013,30]
[392249452,1761276712113,-500.0,0.00043013,30]
[392249453,1761276712126,-500.0,0.00043013,30]
[392249454,1761276712136,-500.0,0.00043013,30]
[392249455,1761276712146,-500.0,0.00043013,30]
[392249456,1761276712155,-500.0,0.00043013,30]
[392249457,1761276712166,-830.72,0.00043013,30]
[392249458,1761276712175,-500.0,0.00043013,30]
[392249459,1761276712184,-500.0,0.00043013,30]
[392249460,1761276712194,-500.0,0.00043013,30]
[392249461,1761276712204,-749.93,0.00043013,30]
[392249462,1761276712213,-666.64,0.00043013,30]
[392249463,1761276712223,-500.0,0.00043013,30]
[392249464,1761276712233,-500.0,0.00043013,30]
[392249465,1761276712242,-500.0,0.00043013,30]
[392249466,1761276712251,-500.0,0.00043013,30]
[392249467,1761276712261,-500.0,0.00043013,30]
[392249468,1761276712271,-500.0,0.00043013,120]
[392249469,1761276712280,-500.0,0.00043013,30]
[392249470,1761276712290,-500.0,0.00043013,30]
[392249471,1761276712299,-788.87,0.00043013,30]
[392249472,1761276712309,-500.0,0.00043013,30]
[392249473,1761276712318,-686.26,0.00043013,30]
[392249474,1761276712327,-693.47,0.00043013,30]
[392249475,1761276712337,-500.0,0.00043013,30]
[392249476,1761276712349,-513.66,0.00043013,30]
[392249477,1761276712359,-500.0,0.00043013,30]
[392249478,1761276712368,-566.78361359,0.00043013,30]
[392249479,1761276712379,-560.3,0.00043013,30]
[392249480,1761276712390,-608.92,0.00043013,30]
[392249481,1761276712401,-795.51,0.00043013,30]
[392249482,1761276712412,-600.0,0.00043013,30]
[392249483,1761276712422,-500.0,0.00043013,30]
[392249484,1761276712433,-1206.81,0.00043013,30]
[392249485,1761276712443,-500.0,0.00043013,30]
[392249486,1761276712454,-500.0,0.00043013,30]
[392249487,1761276712465,-1125.76,0.00043013,30]
[392249488,1761276712475,-738.1,0.00043013,30]
[392249489,1761276712487,-500.0,0.00043013,30]
[392249490,1761276712497,-967.88,0.00043013,30]
[392249491,1761276712506,-500.0,0.00043013,30]
[392249492,1761276712516,-885.41,0.00043013,30]
[392249493,1761276712526,-435.15480887,0.00043013,30]
[392249494,1761276712536,-500.0,0.00043013,30]
[392249495,1761276712546,-634.75,0.00043013,30]
[392249496,1761276712556,-500.0,0.00043013,30]
[392249497,1761276712567,-500.0,0.00043013,30]
[392249498,1761276712578,-529.46,0.00043013,30]
[392249499,1761276712588,-796.37,0.00043013,30]
[392249500,1761276712598,-621.28,0.00043013,30]
[392249501,1761276712607,-500.0,0.00043013,30]
[392249502,1761276712618,-880.49,0.00043013,30]
[392249503,1761276712627,-926.44,0.00043013,30]
[392249504,1761276712636,-500.0,0.00043013,30]
[392249505,1761276712647,-500.0,0.00043013,30]
[392249506,1761276712658,-580.82,0.00043013,30]
[392249507,1761276712669,-513.39,0.00043013,30]
[392249508,1761276712681,-736.93,0.00043013,30]
[392249509,1761276712692,-565.79,0.00043013,30]
[392249510,1761276712703,-591.81,0.00043013,30]
[392249511,1761276712713,-500.0,0.00043013,30]
[392249512,1761276712722,-500.0,0.00043013,30]
[392249513,1761276712731,-500.0,0.00043013,30]
[392249514,1761276712741,-767.1,0.00043013,30]
[392249515,1761276712750,-856.96,0.00043013,30]
[392249516,1761276712759,-870.03,0.00043013,30]
[392249517,1761276712769,-809.41,0.00043013,30]
[392249518,1761276713060,-500.0,0.00043013,30]
[392249519,1761276713070,-500.0,0.00043013,30]
[392249520,1761276713081,-500.0,0.00043013,30]
[392249521,1761276713091,-500.0,0.00043013,30]
[392249522,1761276713102,-500.0,0.00043013,30]
[392249523,1761276713112,-500.0,0.00043013,30]
[392249524,1761276713121,-500.0,0.00043013,30]
[392249525,1761276713131,-722.58,0.00043013,30]
[392249526,1761276713145,-500.0,0.00043013,30]
[392249527,1761276713156,-581.66,0.00043013,30]
[392249528,1761276713166,-500.0,0.00043013,30]
[392249529,1761276713175,-999.11,0.00043013,30]
[392249530,1761276713185,-500.0,0.00043013,30]
[392249531,1761276713194,-500.0,0.00043013,30]
[392249532,1761276713204,-500.0,0.00043013,30]
[392249533,1761276713215,-500.0,0.00043013,30]
[392249534,1761276713225,-535.52,0.00043013,30]
[392249535,1761276713236,-557.78,0.00043013,30]
[392249536,1761276713246,-2927.58,0.00043013,30]
[392249537,1761276713255,-500.0,0.00043013,30]
[392249538,1761276713266,-519.26,0.00043013,30]
[392249539,1761276713276,-673.74,0.00043013,30]
[392249540,1761276713286,-783.9,0.00043013,30]
[392249541,1761276713296,-500.0,0.00043013,30]
[392249542,1761276713306,-816.99,0.00043013,30]
[392249543,1761276713316,-500.0,0.00043013,30]
[392249544,1761276713326,-534.55599781,0.00043013,30]
[392249545,1761276713336,-812.07,0.00043013,30]
[392249546,1761276713345,-773.52,0.00043013,30]
[392249547,1761276713355,-500.0,0.00043013,30]
[392249548,1761276713364,-500.0,0.00043013,30]
[392249549,1761276713374,-500.0,0.00043013,30]
[392249550,1761276713384,-1089.69,0.00043013,30]
[392249551,1761276713394,-500.0,0.00043013,30]
[392249552,1761276713408,-1063.04,0.00043013,30]
[392249553,1761276713418,-500.0,0.00043013,30]
[392249554,1761276713427,-623.88,0.00043013,30]
[392249555,1761276713436,-500.0,0.00043013,30]
[392249556,1761276713446,-500.0,0.00043013,30]
[392249557,1761276713456,-536.84,0.00043013,30]
[392249558,1761276713466,-656.17,0.00043013,30]
[392249559,1761276713475,-500.0,0.00043013,30]
[392249560,1761276713485,-668.42,0.00043013,30]
[392249561,1761276713495,-500.0,0.00043013,30]
[392249562,1761276713505,-661.4,0.00043013,30]
[392249563,1761276713514,-708.15,0.00043013,30]
[392249564,1761276713524,-802.48,0.00043013,30]
[392249565,1761276713534,-500.0,0.00043013,30]
[392249566,1761276713544,-516.08,0.00043013,30]
[392249567,1761276713553,-392.66419763,0.00043013,30]
[392249568,1761276713564,-823.14,0.00043013,30]
[392249569,1761276713574,-500.0,0.00043013,30]
[392249570,1761276713584,-500.0,0.00043013,30]
[392249571,1761276713598,-742.53,0.00043013,30]
[392249572,1761276713608,-500.0,0.00043013,30]
[392249573,1761276713619,-500.0,0.00043013,30]
[392249574,1761276713629,-849.18,0.00043013,30]
[392249575,1761276713638,-372.7497328,0.00043013,30]
[392249576,1761276713648,-500.0,0.00043013,30]
[392249577,1761276713658,-500.0,0.00043013,30]
[392249578,1761276713668,-500.0,0.00043013,30]
[392249579,1761276713678,-500.0,0.00043013,30]
[392249580,1761276713687,-566.09,0.00043013,30]
[392249581,1761276713697,-500.0,0.00043013,30]
[392249582,1761276713707,-162.28399455,0.00043013,30]
[392249583,1761276713717,-863.39,0.00043013,30]
[392249584,1761276713728,-681.53,0.00043013,30]
[392249585,1761276713737,-500.0,0.00043013,30]
[392249586,1761276713747,-792.61,0.00043013,30]
[392249587,1761276713757,-602.76847637,0.00043013,30]
[392249588,1761276713767,-500.0,0.00043013,30]
[392249589,1761276713776,-500.0,0.00043013,30]
[392249590,1761276713786,-808.63,0.00043013,30]
[392249591,1761276713796,-618.95,0.00043013,30]